fUST/lending_fUST_20240104
["ID","MTS","AMOUNT","RATE_DAILY","PERIOD"]
[310101805,1704332505774,154.8915759,0.00018829,3]
[310101806,1704332521972,154.8915759,0.00018829,3]
[310101807,1704332535776,154.8915759,0.00018829,3]
[310101810,1704332553776,154.8915759,0.00018829,3]
[310101812,1704332571784,154.8915759,0.00018829,3]
[310101814,1704332591961,154.8915759,0.00018829,3]
[310101815,1704332613913,154.8915759,0.00018829,3]
[310101816,1704332631785,154.8915759,0.00018829,3]
[310101817,1704332632398,270.59361061,0.0002,2]
[310101818,1704332649797,154.8915759,0.00018829,3]
[310101819,1704332669919,154.8915759,0.00018829,3]
[310101821,1704332682804,200.0,0.00023014,7]
[310101823,1704332689934,154.8915759,0.00018829,3]
[310101825,1704332709813,154.8915759,0.00018829,3]
[310101826,1704332729800,154.8915759,0.00018829,3]
[310101827,1704332749803,154.8915759,0.00018829,3]
[310101828,1704332767819,154.8915759,0.00018829,3]
[310101829,1704332783905,154.8915759,0.00018829,3]
[310101831,1704332809814,154.8915759,0.00018829,3]
[310101832,1704332831819,154.8915759,0.00018829,3]
[310101833,1704332838308,297.79293521,0.00018829,2]
[310101835,1704332849843,154.8915759,0.00018829,3]
[310101836,1704332856247,225.04625901,0.00018829,2]
[310101837,1704332867837,154.8915759,0.00018829,3]
[310101838,1704332883821,154.8915759,0.00018829,3]
[310101839,1704332893624,178.220378,0.00019734,2]
[310101840,1704332897906,154.8915759,0.00018829,3]
[310101841,1704332898850,24900.0,0.00020008,2]
[310101842,1704332915838,154.8915759,0.00018829,3]
[310101843,1704332939828,154.8915759,0.00018829,3]
[310101844,1704332955829,154.8915759,0.00018829,3]
[310101845,1704332971833,154.8915759,0.00018829,3]
[310101847,1704332983005,200.0,0.00023014,7]
[310101848,1704332993842,-331.71558979,0.00020919,2]
[310101849,1704332993871,-154.8915759,0.0002092,2]
[310101850,1704332993900,-211.12208719,0.00020921,2]
[310101851,1704332993928,-155.47684924,0.00020921,2]
[310101852,1704332993957,-6.3179815,0.00020922,2]
[310101853,1704332993989,-215.5073991,0.00020922,2]
[310101854,1704332994022,-220.30238843,0.00020922,2]
[310101855,1704332994158,-154.94055096,0.00020923,2]
[310101856,1704332994185,-484.28114423,0.00020923,2]
[310101858,1704332995833,154.8915759,0.00020922,4]
[310101861,1704333021913,154.8915759,0.00018831,3]
[310101912,1704333032170,-85.04758582,0.00020923,2]
[310101914,1704333032180,-2067.82698933,0.00020923,2]
[310101915,1704333032190,-3090.60209531,0.00020923,2]
[310101916,1704333032200,-322.9822489,0.00020923,2]
[310101917,1704333032210,-155.13610375,0.00020923,2]
[310101918,1704333032220,-284.11947607,0.00020923,2]
[310101919,1704333032230,-155.04645438,0.00020923,2]
[310101920,1704333032242,-243.37985418,0.00020923,2]
[310101921,1704333032253,-954.39616068,0.00020923,2]
[310101922,1704333032262,-332.04557989,0.00020923,2]
[310101924,1704333032272,-155.60215864,0.00020924,2]
[310101926,1704333032282,-618.46019165,0.00020924,2]
[310101928,1704333032293,-2813.59069539,0.00020924,2]
[310101930,1704333032303,-186.20505273,0.00020924,2]
[310101932,1704333032313,-12799.78182419,0.00020925,2]
[310101934,1704333032323,-329.67807131,0.00021,2]
[310101936,1704333032334,-1153.76426976,0.00021,2]
[310101938,1704333032344,-9001.92673743,0.00021354,2]
[310101939,1704333032355,-2097.15281013,0.00021355,2]
[310101940,1704333032365,-365.01311122,0.00021355,2]
[310101941,1704333032376,-155.42232069,0.00021355,2]
[310101942,1704333032385,-155.34698972,0.00021355,2]
[310101943,1704333032396,-267.36372096,0.00021356,2]
[310101944,1704333032406,-408.30206701,0.00021356,2]
[310101945,1704333032416,-1703.73246948,0.00022,2]
[310101946,1704333032426,-155.14751791,0.00022,2]
[310101947,1704333032435,-155.34549465,0.00022,2]
[310101948,1704333032445,-154.89160062,0.00022568,2]
[310101949,1704333032455,-273.13997523,0.00022568,2]
[310101950,1704333032465,-1235.39762846,0.00022568,2]
[310101951,1704333032474,-864.07054828,0.00022568,2]
[310101952,1704333032484,-594.82079385,0.00022569,2]
[310101953,1704333032494,-316.19645809,0.000239,2]
[310101954,1704333032504,-155.27505373,0.00025,2]
[310101955,1704333032514,-155.1180437,0.00025,2]
[310101956,1704333032523,-3002.87321176,0.00025,2]
[310101957,1704333032533,-280.0,0.00025316,7]
[310101958,1704333032542,-391.0,0.00027847,15]
[310101959,1704333032552,-316.19645809,0.000289,2]
[310101960,1704333032562,-1325.96990759,0.000297,2]
[310101961,1704333032571,-498.70583854,0.000298,5]
[310101962,1704333032581,-154.78330338,0.0003,4]
[310101963,1704333032591,-159.01242882,0.0003,2]
[310101964,1704333032600,-244.38347698,0.0003,4]
[310101965,1704333032610,-1200.0,0.0003,4]
[310101966,1704333032620,-640.15050957,0.0003,4]
[310101967,1704333032629,-200.0,0.00030632,15]
[310101968,1704333032639,-348.0,0.00030632,15]
[310101969,1704333032648,-155.2585453,0.00032,2]
[310101970,1704333032659,-1000.0,0.00034,7]
[310101971,1704333032668,-780.247242,0.00034521,2]
[310101972,1704333032678,-155.36339808,0.00035,6]
[310101973,1704333032687,-155.4588491,0.00035,4]
[310101975,1704333032697,-2793.65405807,0.00035,4]
[310101977,1704333032706,-1454.89912219,0.00035,14]
[310101979,1704333032715,-332.07950254,0.00035,4]
[310101980,1704333032725,-391.0,0.00035452,2]
[310101982,1704333032735,-2345.61,0.00035494,3]
[310101983,1704333032744,-1211.25726972,0.00035496,3]
[310102075,1704333046145,-154.8915759,0.00035495,5]
[310102076,1704333046158,-2818.44937006,0.00035499,4]
[310102077,1704333046170,-369.07054926,0.000355,14]
[310102078,1704333046180,-2000.0,0.000355,4]
[310102079,1704333046192,-2495.44136347,0.00035506,4]
[310102080,1704333046203,-161.58509592,0.00035506,4]
[310102081,1704333046214,-282.08381241,0.00035506,3]
[310102082,1704333046227,-693.62946132,0.00035506,4]
[310102083,1704333046236,-126.48037998,0.0003551,4]
[310102084,1704333046288,-1873.51962002,0.0003551,4]
[310102085,1704333046298,-2142.18325613,0.00035514,2]
[310102086,1704333046309,-1323.30900235,0.00035514,4]
[310102087,1704333046319,-2742.78283843,0.00035514,2]
[310102088,1704333046329,-394.23430496,0.00035514,4]
[310102089,1704333046339,-950.17803334,0.00035514,2]
[310102090,1704333046349,-1049.52248848,0.00035514,7]
[310102091,1704333046360,-3720.57587134,0.00035515,2]
[310102092,1704333046371,-2000.0,0.0003552,4]
[310102093,1704333046383,-2000.0,0.0003553,4]
[310102094,1704333046394,-2000.0,0.0003554,4]
[310102095,1704333046404,-2000.0,0.0003555,4]
[310102096,1704333046414,-2000.0,0.0003556,4]
[310102097,1704333046425,-2000.0,0.0003557,4]
[310102098,1704333046436,-2000.0,0.0003558,4]
[310102099,1704333046446,-2000.0,0.0003559,4]
[310102100,1704333046456,-1907.50217961,0.000356,4]
[310102101,1704333046471,-92.49782039,0.000356,4]
[310102102,1704333046481,-2000.0,0.0003561,4]
[310102103,1704333046490,-409.15247,0.00035616,120]
[310102104,1704333046499,-2000.0,0.0003562,4]
[310102105,1704333046510,-2000.0,0.0003563,4]
[310102106,1704333046519,-2000.0,0.0003564,4]
[310102107,1704333046529,-2000.0,0.0003565,4]
[310102108,1704333046538,-2000.0,0.0003566,4]
[310102109,1704333046550,-2000.0,0.0003567,4]
[310102110,1704333046560,-3074.784614,0.0003568,4]
[310102111,1704333046569,-780.247242,0.00035798,2]
[310102112,1704333046578,-906.7142846,0.000358,2]
[310102113,1704333046601,-8801.43020463,0.000358,2]
[310102114,1704333046611,-159.0,0.0003589,2]
[310102115,1704333046620,-232.57470138,0.000359,4]
[310102116,1704333046630,-1954.67,0.0003599,3]
[310102117,1704333046640,-28502.80063026,0.00036,4]
[310102118,1704333046649,-532.43073495,0.00036,2]
[310102119,1704333046660,-159.0,0.00036,2]
[310102120,1704333046670,-253.03503331,0.0003624,2]
[310102121,1704333046679,-780.247242,0.00037075,2]
[310102122,1704333046690,-216.53348997,0.0003724,2]
[310102123,1704333046699,-159.0,0.00037397,2]
[310102124,1704333046710,-635.36154363,0.00037921,2]
[310102125,1704333046719,-435.24086706,0.00038,2]
[310102126,1704333046730,-406.55012939,0.00038,30]
[310102127,1704333046739,-13676.29394445,0.00038,2]
[310102128,1704333046749,-780.247242,0.00038352,2]
[310102129,1704333046759,-500.0,0.00038356,2]
[310102130,1704333046826,-441.0,0.0003874,2]
[310102131,1704333046835,-2990.0,0.000388,7]
[310102132,1704333046844,-6313.84424171,0.00039,2]
[310102133,1704333046853,-155.43765086,0.00039,4]
[310102134,1704333046862,-154.972311,0.00039,2]
[310102135,1704333046872,-151.0,0.00039,2]
[310102136,1704333046881,-153.0,0.00039205,2]
[310102137,1704333046890,-153.0,0.00039205,2]
[310102138,1704333046899,-153.5065247,0.00039205,2]
[310102139,1704333046908,-160.0,0.00039267,14]
[310102140,1704333046917,-160.0,0.00039413,3]
[310102141,1704333046926,-500.0,0.00039499,2]
[310102142,1704333046935,-407.61630726,0.00039499,2]
[310102143,1704333046944,-500.0,0.00039499,2]
[310102144,1704333046953,-172.7554813,0.00039499,2]
[310102145,1704333046962,-500.0,0.00039499,2]
[310102146,1704333046971,-163.0705,0.000395,2]
[310102147,1704333046981,-2000.0,0.000395,17]
[310102148,1704333046990,-150.0,0.0003951,60]
[310102149,1704333047000,-2000.0,0.0003951,17]
[310102150,1704333047009,-150.0,0.00039511,60]
[310102151,1704333047018,-150.0,0.0003952,60]
[310102152,1704333047027,-2000.0,0.0003952,17]
[310102153,1704333047036,-150.0,0.0003953,60]
[310102154,1704333047045,-2000.0,0.0003953,17]
[310102155,1704333047055,-685.36830863,0.00039539,4]
[310102156,1704333047064,-3000.0,0.00039539,2]
[310102157,1704333047074,-182.49691935,0.00039539,4]
[310102158,1704333047083,-383.19170565,0.00039539,4]
[310102159,1704333047092,-2853.36575284,0.0003954,4]
[310102160,1704333047102,-2000.0,0.0003954,17]
[310102161,1704333047112,-16986.67241798,0.00039541,3]
[310102162,1704333047123,-154.8915759,0.00039541,7]
[310102163,1704333047133,-151.0,0.00039541,2]
[310102164,1704333047144,-2000.0,0.0003955,17]
[310102165,1704333047154,-2000.0,0.0003956,17]
[310102166,1704333047165,-2000.0,0.0003957,17]
[310102167,1704333047174,-151.0,0.0003957,2]
[310102168,1704333047184,-151.0,0.0003958,2]
[310102169,1704333047195,-2000.0,0.0003958,17]
[310102170,1704333047206,-2000.0,0.0003959,17]
[310102171,1704333047215,-2000.0,0.000396,18]
[310102172,1704333047231,-2000.0,0.0003961,18]
[310102173,1704333047242,-5000.0,0.00039613,7]
[310102174,1704333047252,-6881.49515347,0.00039613,3]
[310102175,1704333047262,-2000.0,0.0003962,18]
[310102176,1704333047272,-5000.0,0.00039629,7]
[310102177,1704333047281,-8308.17317182,0.00039629,3]
[310102178,1704333047290,-169.65233515,0.00039629,3]
[310102179,1704333047299,-401.26467,0.00039629,2]
[310102180,1704333047310,-401.26467,0.00039629,2]
[310102181,1704333047320,-151.0,0.00039629,2]
[310102182,1704333047330,-780.247242,0.0003963,2]
[310102183,1704333047340,-2000.0,0.0003963,18]
[310102184,1704333047350,-2000.0,0.0003964,18]
[310102185,1704333047360,-2119.19689115,0.00039641,3]
[310102186,1704333047373,-151.0,0.00039641,2]
[310102187,1704333047383,-3892.253729,0.0003965,18]
[310102188,1704333047394,-409.28016232,0.00039793,4]
[310102189,1704333047405,-72295.64207,0.00039797,4]
[310102190,1704333047414,-151.0,0.00039798,2]
[310102191,1704333047424,-1825.04005048,0.00039798,4]
[310102192,1704333047434,-200.13943,0.000398,11]
[310102193,1704333047444,-160.0,0.00039803,4]
[310102194,1704333047453,-171.0,0.00039958,7]
[310102195,1704333047462,-171.0,0.00039968,7]
[310102196,1704333047472,-171.0,0.00039978,7]
[310102197,1704333047482,-150.0,0.0003998,60]
[310102198,1704333047492,-6283.84314079,0.00039989,2]
[310102199,1704333047501,-4031.97114424,0.0003999,4]
[310102200,1704333047511,-150.0,0.0003999,60]
[310102201,1704333047521,-185.16,0.00039999,2]
[310102202,1704333047531,-185.16,0.00039999,2]
[310102203,1704333047541,-185.16,0.00039999,2]
[310102204,1704333047551,-185.16,0.00039999,2]
[310102205,1704333047561,-185.16,0.00039999,2]
[310102206,1704333047571,-500.0,0.00039999,4]
[310102207,1704333047581,-500.0,0.00039999,4]
[310102208,1704333047590,-500.0,0.00039999,4]
[310102209,1704333047599,-610.06213312,0.00039999,4]
[310102210,1704333047609,-436.65759338,0.00039999,4]
[310102211,1704333047619,-224.5564983,0.00039999,4]
[310102212,1704333047629,-500.0,0.00039999,4]
[310102213,1704333047640,-535.18369162,0.00039999,4]
[310102214,1704333047650,-500.0,0.00039999,4]
[310102215,1704333047660,-234.16439834,0.00039999,4]
[310102216,1704333047670,-152.51553327,0.00039999,4]
[310102217,1704333047680,-254.56661098,0.00039999,7]
[310102218,1704333047690,-174.69270311,0.00039999,7]
[310102219,1704333047749,-500.0,0.00039999,7]
[310102220,1704333047760,-500.0,0.00039999,7]
[310102221,1704333047772,-155.56878561,0.0004,4]
[310102222,1704333047782,-290.35547366,0.0004,4]
[310102223,1704333047794,-276.90823857,0.0004,4]
[310102224,1704333047804,-234.31888264,0.0004,4]
[310102225,1704333047815,-1125.96207882,0.0004,30]
[310102226,1704333047825,-1278.30335464,0.0004,4]
[310102227,1704333047834,-11888.099999,0.0004,7]
[310102228,1704333047845,-371.04881992,0.0004,4]
[310102229,1704333047855,-22689.40249606,0.0004,4]
[310102234,1704333139093,-500000.0,0.00048155,30]
[310102256,1704333337489,-500000.0,0.00048155,30]
[310102572,1704333607412,154.8915759,0.00020992,4]
[310102575,1704333641822,-154.8915759,0.00020894,2]
[310102576,1704333641844,-0.1084241,0.00020895,2]
[310102578,1704333710113,-154.8915759,0.00020893,2]
[310102579,1704333710142,-212.67163283,0.00020894,2]
[310102580,1704333710177,-135.43679127,0.00020895,2]
[310102584,1704333883221,200.0,0.00023099,7]
[310102660,1704334034472,154.8915759,0.00020998,4]
[310102661,1704334108968,440.0,0.00035616,120]
[310102664,1704334154023,-109.04900004,0.00020895,2]
[310102665,1704334154050,-580.97210623,0.00020999,2]
[310102666,1704334154083,-690.02110627,0.00020999,2]
[310102667,1704334154119,-244.03519266,0.00020999,2]
[310102669,1704334178722,-154.8915759,0.00020998,2]
[310102670,1704334178750,-567.61107847,0.00020999,2]
[310102671,1704334178784,-722.50265437,0.00020999,2]
[310102672,1704334178834,-185.54817185,0.00020999,2]
[310102673,1704334178863,-350.16113592,0.00021,2]
[310102674,1704334203758,-762.1169467,0.00021,2]
[310102675,1704334203816,-762.1169467,0.00021,2]
[310102696,1704334232270,-10119.9561708,0.00021,2]
[310102697,1704334232279,-8290.77018059,0.00021,2]
[310102699,1704334232288,-154.8915759,0.00024995,2]
[310102700,1704334232298,-212.67163283,0.00024996,2]
[310102701,1704334232307,-1040.80231879,0.00025,2]
[310102702,1704334232317,-177.1969503,0.00026658,2]
[310102703,1704334232326,-418.93682506,0.00028,2]
[310102705,1704334232335,-24900.0,0.00028138,2]
[310102707,1704334232344,-268.52109404,0.00028499,2]
[310102709,1704334232353,-1321.08258665,0.000297,2]
[310102710,1704334232362,-30132.19549434,0.0002979,7]
[310102711,1704334232371,-496.1966346,0.000298,5]
[310102712,1704334232456,-2749.0816799,0.0003,2]
[310102713,1704334232466,-1738.65285554,0.0003,2]
[310102714,1704334232475,-3226.87366242,0.0003,3]
[310102715,1704334232484,-7027.47135002,0.0003,4]
[310102716,1704334232494,-172.0,0.0003,2]
[310102717,1704334232503,-170.0,0.00033,2]
[310102718,1704334232512,-1000.0,0.00034197,7]
[310102719,1704334232522,-154.8915759,0.00034198,5]
[310102720,1704334232531,-525.708936,0.00034521,2]
[310102721,1704334232540,-351.0,0.00035589,2]
[310102722,1704334232550,-282.15862485,0.00035616,3]
[310102723,1704334232559,-4199.33436408,0.00035616,4]
[310102724,1704334232568,-9274.0,0.00035616,120]
[310102725,1704334232578,-306.864352,0.00035616,120]
[310102726,1704334232587,-525.708936,0.00035798,2]
[310102727,1704334232596,-232.59961994,0.000359,4]
[310102728,1704334232605,-5173.36053373,0.00035996,4]
[310102729,1704334232614,-253.13732297,0.0003624,2]
[310102730,1704334232623,-525.708936,0.00037075,2]
[310102731,1704334232632,-216.59298677,0.0003724,2]
[310102732,1704334232641,-2602.61,0.00037598,3]
[310102733,1704334232650,-3123.14,0.00037607,3]
[310102734,1704334232659,-3747.76,0.00037608,3]
[310102735,1704334232668,-154.8915759,0.00037617,4]
[310102736,1704334232676,-1195.26216296,0.00037617,4]
[310102737,1704334232686,-3940.63839326,0.00037618,4]
[310102771,1704334238466,-200.0,0.00026969,15]
[310102772,1704334238478,-1197.48563626,0.00037618,4]
[310102780,1704334241404,-997.8749079,0.00037618,4]
[310102807,1704334246321,-469.23916593,0.00037617,4]
[310103029,1704335064446,-273.22384269,0.00020537,2]
[310103030,1704335064467,-322.02364471,0.00020538,2]
[310103031,1704335064488,-154.8915759,0.00020539,2]
[310103032,1704335064510,-24824.8609367,0.0002054,2]
[310103033,1704335081817,1467.23770608,0.00015749,2]
[310103035,1704335141993,-322.45088906,0.00020537,2]
[310103036,1704335142014,-176.33403755,0.00020537,2]
[310103037,1704335142034,-178.30188411,0.00020538,2]
[310103038,1704335142055,-75.1390633,0.0002054,2]
[310103039,1704335142076,-3487.68070921,0.00020578,2]
[310103040,1704335142095,-397.09341677,0.00020788,2]
[310103042,1704335163479,1385.87619938,0.00020998,5]
[310103051,1704335210275,-273.22384269,0.00020533,2]
[310103052,1704335210296,-229.77615731,0.00020535,2]
[310103060,1704335274406,-1171.41041004,0.00020529,2]
[310103061,1704335274426,-264.53886499,0.0002053,2]
[310103062,1704335274447,-1821.05072497,0.00020531,2]
[310103065,1704335291894,-713.27909537,0.00020531,2]
[310103066,1704335291933,-611.8644197,0.00020531,2]
[310103067,1704335291960,-18.35665136,0.00020788,2]
[310103068,1704335291988,-83.05802431,0.000209,2]
[310103071,1704335302646,154.8915759,0.00018898,3]
[310103072,1704335305391,1054.55818901,0.00020998,7]
[310103074,1704335316846,-89.66294703,0.000209,2]
[310103075,1704335316887,-652.14731215,0.00020998,2]
[310103076,1704335316935,-277.0644545,0.00020998,2]
[310103077,1704335316966,-464.74580468,0.00020998,2]
[310103078,1704335324265,-2404.69420458,0.00020998,2]
[310103079,1704335324292,-154.8915759,0.00020998,2]
[310103080,1704335324319,-154.8915759,0.00020998,2]
[310103081,1704335324346,-154.8915759,0.00020998,2]
[310103082,1704335324374,-241.52287703,0.00020998,2]
[310103083,1704335324401,-155.12477886,0.00020998,2]
[310103084,1704335324428,-980.30653185,0.00020998,2]
[310103085,1704335324455,-155.61409802,0.00020998,2]
[310103086,1704335324482,-1743.59600139,0.00020998,2]
[310103087,1704335324509,-155.52850369,0.00020998,2]
[310103088,1704335324536,-562.27530975,0.00020998,2]
[310103089,1704335324562,-2990.08384051,0.00020998,2]
[310103090,1704335324590,-250.32195514,0.00020998,2]
[310103091,1704335324701,-856.101376,0.00020998,2]
[310103092,1704335324727,-522.05251493,0.00020998,2]
[310103093,1704335324752,-3007.86249426,0.00020998,2]
[310103094,1704335324777,-176.93301286,0.00020998,2]
[310103095,1704335324803,-179.22696426,0.00020998,2]
[310103096,1704335324827,-284.86161833,0.00020998,2]
[310103097,1704335324852,-187.6762609,0.00020998,2]
[310103098,1704335324877,-317.57175691,0.00020998,2]
[310103099,1704335324902,-155.35829871,0.00020998,2]
[310103100,1704335324928,-2193.47334801,0.00020998,2]
[310103101,1704335324954,-347.33409961,0.00020998,2]
[310103102,1704335324981,-452.52841861,0.00020998,2]
[310103103,1704335325008,-397.53147858,0.00020998,2]
[310103104,1704335325033,-5577.9950343,0.00020999,2]
[310103105,1704335325059,-47345.39262217,0.00021,2]
[310103106,1704335348455,2076.65490248,0.00020998,2]
[310103107,1704335349229,618.72371927,0.00020998,2]
[310103108,1704335350830,154.8915759,0.00018898,2]
[310103109,1704335352761,154.8915759,0.00020998,2]
[310103110,1704335355321,24889.19609949,0.00020998,2]
[310103111,1704335367013,-771.48266955,0.00020997,2]
[310103112,1704335367068,-152.70377578,0.00020997,2]
[310103113,1704335367095,-454.96443723,0.00020998,2]
[310103114,1704335370844,166.83553989,0.00018898,2]
[310103115,1704335378623,5000.0,0.00020367,5]
[310103116,1704335384196,200.0,0.00023086,7]
[310103117,1704335386664,683.13879405,0.00019946,2]
[310103118,1704335392123,-799.0656872,0.00020577,2]
[310103119,1704335392483,-799.0656872,0.00020577,2]
[310103120,1704335396627,2955.55767527,0.00020366,5]
[310103121,1704335401234,808.97049493,0.00018898,2]
[310103122,1704335402655,683.13879405,0.00019946,2]
[310103123,1704335405729,618.72371927,0.00018898,2]
[310103124,1704335419234,808.97049493,0.00018898,2]
[310103125,1704335420682,208.41691032,0.00019946,2]
[310103126,1704335421737,303.41119241,0.00018898,2]
[310103324,1704335435234,346.24203497,0.00018898,2]
[310103353,1704335439727,424.93023673,0.00018898,2]
[310103369,1704335441676,-1193.60075025,0.00020363,2]
[310103370,1704335441687,-271.56875452,0.00020364,2]
[310103371,1704335441697,-61.1008398,0.00020364,2]
[310103372,1704335441709,-93.7907361,0.00020364,2]
[310103373,1704335441720,-347.2162539,0.00020365,2]
[310103374,1704335442748,2376.35129707,0.00018896,2]
[310103379,1704335446520,-427.88420856,0.00020365,2]
[310103380,1704335446795,-1256.94518022,0.00020365,2]
[310103381,1704335446805,-212.67163283,0.00020365,2]
[310103382,1704335446814,-154.8915759,0.00020365,4]
[310103383,1704335446824,-2044.44232473,0.00020366,5]
[310103384,1704335446833,-990.47515166,0.00020577,2]
[310103385,1704335446842,-160.03998252,0.00020898,2]
[310103386,1704335446851,-369.68325656,0.00020996,2]
[310103387,1704335446860,-348.22878364,0.00020996,2]
[310103388,1704335446869,-165.39109721,0.00020996,2]
[310103389,1704335446878,-171.0174042,0.00020997,2]
[310103390,1704335446888,-964.72932524,0.00020997,2]
[310103391,1704335446899,-33620.55061507,0.00020998,2]
[310103392,1704335446914,-65312.27600698,0.00020998,2]
[310103393,1704335447089,-5837.91425433,0.00020998,2]
[310103397,1704335452987,5463.02756486,0.00018896,2]
[310103398,1704335453073,2082.9147171,0.00018896,2]
[310103399,1704335457464,1041.72310357,0.00018896,2]
[310103400,1704335457846,166.30807142,0.00017008,2]
[310103401,1704335463172,154.8915759,0.00018896,3]
[310103402,1704335468167,24900.0,0.00019994,2]
[310103403,1704335470981,1218.78284818,0.00018896,2]
[310103404,1704335479201,154.8915759,0.00018896,3]
[310103405,1704335486740,496.47138259,0.000189,2]
[310103406,1704335503172,154.8915759,0.00018896,3]
[310103407,1704335521172,154.8915759,0.00018896,3]
[310103408,1704335527628,-2090.62355962,0.0002035,2]
[310103409,1704335527649,-212.67163283,0.0002035,2]
[310103410,1704335527669,-553.40007214,0.0002035,2]
[310103411,1704335527689,-1019.69672645,0.0002035,2]
[310103412,1704335527708,-590.70052117,0.0002035,2]
[310103413,1704335527728,-586.17383945,0.0002035,2]
[310103414,1704335527826,-1573.84262865,0.00020351,2]
[310103415,1704335527847,-1678.7663531,0.00020351,2]
[310103416,1704335527868,-1029.24597412,0.00020351,2]
[310103417,1704335527889,-642.10331134,0.00020351,2]
[310103418,1704335527911,-2027.50790733,0.00020351,2]
[310103419,1704335527932,-945.03415602,0.00020351,2]
[310103420,1704335527953,-253.22751891,0.00020351,2]
[310103421,1704335527972,-322.45088906,0.00020351,2]
[310103422,1704335527991,-154.8915759,0.00020351,2]
[310103423,1704335528011,-852.41517296,0.00020351,2]
[310103424,1704335528033,-873.94452657,0.00020351,2]
[310103425,1704335528054,-2632.26457677,0.00020351,2]
[310103426,1704335528075,-3539.58,0.00020351,3]
[310103427,1704335528095,-413.60737258,0.00020352,2]
[310103428,1704335528115,-2805.17049391,0.00020352,2]
[310103429,1704335528136,-4247.49,0.00020352,3]
[310103430,1704335528157,-5096.99,0.00020353,3]
[310103431,1704335528180,-10479.76281548,0.00020359,2]
[310103432,1704335528200,-26383.15589177,0.0002036,2]
[310103433,1704335528220,-166.20606799,0.0002036,2]
[310103434,1704335528241,-15859.56727457,0.00020361,2]
[310103435,1704335528262,-11243.50914131,0.00020362,2]
[310103436,1704335539171,154.8915759,0.00018896,3]
[310103437,1704335542735,5944.69403083,0.00018896,2]
[310103438,1704335559209,154.8915759,0.00018896,3]
[310103439,1704335577209,154.8915759,0.00018312,3]
[310103443,1704335597205,154.8915759,0.00018312,3]
[310103444,1704335599964,433.041423,0.00019463,2]
[310103445,1704335610045,378.2347754,0.00019353,2]
[310103446,1704335612922,-2458.04,0.00020339,3]
[310103447,1704335612943,-154.8915759,0.00020344,2]
[310103448,1704335612964,-553.40007214,0.00020344,2]
[310103449,1704335612984,-852.41517296,0.00020344,2]
[310103450,1704335613005,-1019.69672645,0.00020344,2]
[310103451,1704335613026,-212.67163283,0.00020345,2]
[310103452,1704335613046,-4432.9004324,0.00020345,2]
[310103453,1704335613066,-7854.81364128,0.00020345,2]
[310103454,1704335613099,-15859.56727457,0.00020345,2]
[310103455,1704335613126,-2997.9503727,0.00020346,2]
[310103456,1704335613150,-2090.62355962,0.00020346,2]
[310103457,1704335613173,-871.39988609,0.00020347,2]
[310103458,1704335613196,-469.01797138,0.00020347,2]
[310103459,1704335613219,-26383.15589177,0.00020347,2]
[310103460,1704335613241,-360.25452609,0.00020348,2]
[310103461,1704335613265,-19636.61273015,0.00020348,2]
[310103462,1704335613288,-24083.58853367,0.00020349,2]
[310103463,1704335623202,154.8915759,0.00018312,3]
[310103464,1704335632748,5944.69403083,0.00018896,2]
[310103465,1704335637343,154.8915759,0.00018896,3]
[310103466,1704335657226,154.8915759,0.00018895,3]
[310103467,1704335679205,154.8915759,0.00018895,3]
[310103468,1704335684371,200.0,0.00022366,7]
[310103469,1704335685135,280.0,0.00024603,7]
[310103470,1704335699217,154.8915759,0.00018895,3]
[310103471,1704335721214,154.8915759,0.00018895,3]
[310103472,1704335739216,154.8915759,0.00018894,3]
[310103473,1704335755259,154.8915759,0.00018895,3]
[310103474,1704335777219,154.8915759,0.00018895,3]
[310103475,1704335791034,685.60348625,0.00018895,2]
[310103476,1704335801239,154.8915759,0.00018895,3]
[310103477,1704335804766,268.73332704,0.0002,2]
[310103478,1704335817224,154.8915759,0.00018895,3]